fUSD/lending_fUSD_20260528
["ID","MTS","AMOUNT","RATE_DAILY","PERIOD"]
[423206081,1779928238000,-150.0,0.00014525,2]
[423206078,1779928238000,-200.0,0.000145,5]
[423206080,1779928238000,-2796.5255338,0.00014505,2]
[423206058,1779928238000,-500.0,0.00014451,2]
[423206067,1779928238000,-535.00278977,0.00014451,2]
[423206059,1779928238000,-500.0,0.00014451,2]
[423206043,1779928238000,-500.0,0.00014451,2]
[423206055,1779928238000,-500.0,0.00014451,2]
[423206034,1779928238000,-1200.0,0.000144,5]
[423206035,1779928238000,-150.0,0.00014402,2]
[423206033,1779928238000,-472.77458656,0.000144,2]
[423206036,1779928238000,-150.0,0.00014404,2]
[423206042,1779928238000,-500.0,0.00014451,2]
[423206038,1779928238000,-150.0,0.0001441,2]
[423206045,1779928238000,-500.0,0.00014451,2]
[423206039,1779928238000,-3251.76982499,0.00014412,2]
[423206040,1779928238000,-150.0,0.00014427,2]
[423206041,1779928238000,-267.88170662,0.00014451,2]
[423206056,1779928238000,-500.0,0.00014451,2]
[423206037,1779928238000,-150.0,0.0001441,2]
[423206046,1779928238000,-500.0,0.00014451,2]
[423206047,1779928238000,-500.0,0.00014451,2]
[423206057,1779928238000,-500.0,0.00014451,2]
[423206049,1779928238000,-500.0,0.00014451,2]
[423206053,1779928238000,-244.82538177,0.00014451,2]
[423206050,1779928238000,-478.92004117,0.00014451,2]
[423206048,1779928238000,-500.0,0.00014451,2]
[423206052,1779928238000,-500.0,0.00014451,2]
[423206051,1779928238000,-500.0,0.00014451,2]
[423206054,1779928238000,-500.0,0.00014451,2]
[423206044,1779928238000,-500.0,0.00014451,2]
[423206082,1779928238000,-150.0,0.00014525,2]
[423206079,1779928238000,-150.0,0.00014504,2]
[423206085,1779928238000,-1544.0,0.00014533,2]
[423206114,1779928238000,-500.0,0.00014724,2]
[423206113,1779928238000,-3251.76982499,0.00014717,2]
[423206119,1779928238000,-500.0,0.00014725,2]
[423206116,1779928238000,-945.22,0.00014724,2]
[423206115,1779928238000,-164.03595357,0.00014724,2]
[423206117,1779928238000,-2102.28,0.00014724,2]
[423206118,1779928238000,-500.0,0.00014725,2]
[423206120,1779928238000,-501.15990276,0.00014725,2]
[423206121,1779928238000,-500.0,0.00014725,2]
[423206123,1779928238000,-622.5845227,0.00014725,2]
[423206111,1779928238000,-2000.0,0.000147,2]
[423206122,1779928238000,-500.0,0.00014725,2]
[423206126,1779928238000,-500.0,0.00014725,2]
[423206131,1779928238000,-218.39893225,0.00014725,2]
[423206125,1779928238000,-500.0,0.00014725,2]
[423206127,1779928238000,-150.0,0.00014725,2]
[423206130,1779928238000,-500.0,0.00014725,2]
[423206129,1779928238000,-150.0,0.00014725,2]
[423206133,1779928238000,-500.0,0.00014725,2]
[423206132,1779928238000,-150.0,0.00014725,2]
[423206134,1779928238000,-171.50846167,0.00014725,2]
[423206083,1779928238000,-150.0,0.00014529,2]
[423206128,1779928238000,-500.0,0.00014725,2]
[423206112,1779928238000,-150.0,0.00014707,2]
[423206124,1779928238000,-150.0,0.00014725,2]
[423206110,1779928238000,-200.0,0.000147,5]
[423206109,1779928238000,-2000.0,0.000147,2]
[423206095,1779928238000,-200.0,0.000146,5]
[423206084,1779928238000,-1544.0,0.00014533,2]
[423206086,1779928238000,-3251.76982499,0.00014534,2]
[423206089,1779928238000,-150.0,0.00014558,2]
[423206093,1779928238000,-3251.76982499,0.00014595,2]
[423206092,1779928238000,-161.32731532,0.00014589,30]
[423206091,1779928238000,-150.0,0.0001458,2]
[423206087,1779928238000,-350.0,0.00014549,2]
[423206088,1779928238000,-150.0,0.00014554,2]
[423206096,1779928238000,-150.0,0.00014605,2]
[423206090,1779928238000,-150.0,0.0001457,2]
[423206103,1779928238000,-150.0,0.00014653,2]
[423206099,1779928238000,-1733.8773,0.00014625,2]
[423206102,1779928238000,-150.0,0.0001464,2]
[423206098,1779928238000,-150.0,0.00014612,2]
[423206100,1779928238000,-150.0,0.00014631,2]
[423206101,1779928238000,-150.0,0.0001464,2]
[423206108,1779928238000,-150.0,0.00014681,2]
[423206106,1779928238000,-150.0,0.00014656,2]
[423206104,1779928238000,-150.0,0.00014653,2]
[423206105,1779928238000,-3251.76982499,0.00014656,2]
[423206097,1779928238000,-150.0,0.00014612,2]
[423206107,1779928238000,-350.0,0.00014659,2]
[423206178,1779928239000,-150.0,0.00014725,2]
[423206176,1779928239000,-439.48495491,0.00014725,2]
[423206167,1779928239000,-500.0,0.00014725,2]
[423206179,1779928239000,-150.0,0.00014725,2]
[423206171,1779928239000,-500.0,0.00014725,2]
[423206180,1779928239000,-150.0,0.00014725,2]
[423206168,1779928239000,-500.0,0.00014725,2]
[423206173,1779928239000,-157.41168338,0.00014725,2]
[423206169,1779928239000,-500.0,0.00014725,2]
[423206170,1779928239000,-500.0,0.00014725,2]
[423206174,1779928239000,-500.0,0.00014725,2]
[423206172,1779928239000,-500.0,0.00014725,2]
[423206175,1779928239000,-500.0,0.00014725,2]
[423206192,1779928239000,-150.0,0.00014772,2]
[423206181,1779928239000,-150.0,0.00014725,2]
[423206182,1779928239000,-184.48877466,0.00014725,2]
[423206184,1779928239000,-150.0,0.00014737,2]
[423206183,1779928239000,-150.0,0.00014732,2]
[423206193,1779928239000,-25000.0,0.00014777,3]
[423206189,1779928239000,-150.0,0.00014758,2]
[423206185,1779928239000,-150.0,0.00014737,2]
[423206186,1779928239000,-353.20482834,0.00014742,2]
[423206191,1779928239000,-25000.0,0.00014768,3]
[423206187,1779928239000,-150.0,0.00014756,2]
[423206190,1779928239000,-25000.0,0.00014759,3]
[423206188,1779928239000,-150.0,0.00014756,2]
[423206166,1779928239000,-500.0,0.00014725,2]
[423206177,1779928239000,-150.0,0.00014725,2]
[423206161,1779928239000,-500.0,0.00014725,2]
[423206140,1779928239000,-500.0,0.00014725,2]
[423206162,1779928239000,-500.0,0.00014725,2]
[423206135,1779928239000,-500.0,0.00014725,2]
[423206136,1779928239000,-500.0,0.00014725,2]
[423206144,1779928239000,-180.65416299,0.00014725,2]
[423206142,1779928239000,-150.0,0.00014725,2]
[423206194,1779928239000,-3251.76982499,0.00014778,2]
[423206139,1779928239000,-150.0,0.00014725,2]
[423206141,1779928239000,-150.0,0.00014725,2]
[423206138,1779928239000,-500.0,0.00014725,2]
[423206137,1779928239000,-500.0,0.00014725,2]
[423206143,1779928239000,-500.0,0.00014725,2]
[423206145,1779928239000,-500.0,0.00014725,2]
[423206146,1779928239000,-164.66146701,0.00014725,2]
[423206147,1779928239000,-172.95795463,0.00014725,2]
[423206165,1779928239000,-500.0,0.00014725,2]
[423206152,1779928239000,-500.0,0.00014725,2]
[423206151,1779928239000,-267.19449444,0.00014725,2]
[423206149,1779928239000,-500.0,0.00014725,2]
[423206155,1779928239000,-500.0,0.00014725,2]
[423206156,1779928239000,-500.0,0.00014725,2]
[423206158,1779928239000,-500.0,0.00014725,2]
[423206154,1779928239000,-500.0,0.00014725,2]
[423206148,1779928239000,-500.0,0.00014725,2]
[423206153,1779928239000,-500.0,0.00014725,2]
[423206157,1779928239000,-500.0,0.00014725,2]
[423206159,1779928239000,-500.0,0.00014725,2]
[423206164,1779928239000,-500.0,0.00014725,2]
[423206163,1779928239000,-500.0,0.00014725,2]
[423206160,1779928239000,-500.0,0.00014725,2]
[423206150,1779928239000,-500.0,0.00014725,2]
[423206196,1779928239000,-25000.0,0.00014786,3]
[423206206,1779928239000,-25000.0,0.0001483,3]
[423206249,1779928239000,-150.0,0.00014936,2]
[423206227,1779928239000,-25000.0,0.00014891,3]
[423206228,1779928239000,-408.88631281,0.00014894,2]
[423206233,1779928239000,-159.4650596,0.000149,2]
[423206235,1779928239000,-25000.0,0.000149,3]
[423206236,1779928239000,-3537.21767479,0.000149,2]
[423206234,1779928239000,-3251.76982499,0.000149,2]
[423206238,1779928239000,-1279.33390394,0.000149,2]
[423206237,1779928239000,-685.0,0.000149,5]
[423206239,1779928239000,-402.47019606,0.000149,2]
[423206244,1779928239000,-408.88631281,0.00014905,2]
[423206241,1779928239000,-14121.25366632,0.000149,2]
[423206240,1779928239000,-1649.21210042,0.000149,2]
[423206243,1779928239000,-150.0,0.00014903,2]
[423206230,1779928239000,-5000.0,0.00014899,2]
[423206245,1779928239000,-150.0,0.0001491,2]
[423206247,1779928239000,-159.46505958,0.00014925,2]
[423206251,1779928239000,-408.88631281,0.0001495,2]
[423206248,1779928239000,-408.88631281,0.00014928,2]
[423206254,1779928239000,-1724.78033875,0.00014982,5]
[423206257,1779928239000,-500.0,0.00014982,2]
[423206252,1779928239000,-159.46505958,0.0001495,2]
[423206255,1779928239000,-500.0,0.00014982,2]
[423206195,1779928239000,-150.0,0.00014783,2]
[423206258,1779928239000,-500.0,0.00014982,2]
[423206250,1779928239000,-408.88631281,0.00014939,2]
[423206253,1779928239000,-150.0,0.00014961,2]
[423206256,1779928239000,-533.24,0.00014982,2]
[423206259,1779928239000,-500.0,0.00014982,2]
[423206246,1779928239000,-408.88631281,0.00014917,2]
[423206231,1779928239000,-25000.0,0.000149,3]
[423206242,1779928239000,-35361.24756518,0.000149,2]
[423206226,1779928239000,-150.0,0.00014885,2]
[423206197,1779928239000,-300.0,0.00014787,79]
[423206200,1779928239000,-25000.0,0.00014803,3]
[423206199,1779928239000,-200.0,0.000148,5]
[423206229,1779928239000,-3537.21767479,0.00014898,2]
[423206198,1779928239000,-25000.0,0.00014794,3]
[423206202,1779928239000,-25000.0,0.00014812,3]
[423206204,1779928239000,-150.0,0.0001482,2]
[423206201,1779928239000,-150.0,0.00014808,2]
[423206205,1779928239000,-25000.0,0.00014821,3]
[423206207,1779928239000,-150.0,0.00014834,2]
[423206209,1779928239000,-25000.0,0.00014838,3]
[423206219,1779928239000,-150.0,0.00014871,2]
[423206208,1779928239000,-166.92,0.00014838,2]
[423206211,1779928239000,-25000.0,0.00014847,3]
[423206216,1779928239000,-2000.0,0.0001486,2]
[423206203,1779928239000,-150.0,0.0001482,2]
[423206212,1779928239000,-2000.0,0.0001485,2]
[423206225,1779928239000,-251.89775456,0.00014883,2]
[423206214,1779928239000,-25000.0,0.00014856,3]
[423206224,1779928239000,-500.0,0.00014883,2]
[423206221,1779928239000,-25000.0,0.00014874,3]
[423206222,1779928239000,-25000.0,0.00014882,3]
[423206232,1779928239000,-10000.0,0.000149,2]
[423206223,1779928239000,-408.88631284,0.00014883,2]
[423206213,1779928239000,-2000.0,0.0001485,2]
[423206215,1779928239000,-150.0,0.00014859,2]
[423206210,1779928239000,-3251.76982499,0.00014839,2]
[423206217,1779928239000,-150.0,0.00014861,2]
[423206218,1779928239000,-25000.0,0.00014865,3]
[423206220,1779928239000,-150.0,0.00014871,2]
[423206300,1779928240000,-500.0,0.00014999,2]
[423206297,1779928240000,-500.0,0.00014999,2]
[423206301,1779928240000,-500.0,0.00014999,2]
[423206295,1779928240000,-500.0,0.00014999,2]
[423206292,1779928240000,-500.0,0.00014999,2]
[423206291,1779928240000,-500.0,0.00014998,2]
[423206290,1779928240000,-151.96613771,0.0001499,2]
[423206299,1779928240000,-500.0,0.00014999,2]
[423206293,1779928240000,-500.0,0.00014999,2]
[423206296,1779928240000,-500.0,0.00014999,2]
[423206298,1779928240000,-500.0,0.00014999,2]
[423206307,1779928240000,-500.0,0.00014999,2]
[423206306,1779928240000,-500.0,0.00014999,2]
[423206304,1779928240000,-500.0,0.00014999,2]
[423206305,1779928240000,-500.0,0.00014999,2]
[423206303,1779928240000,-500.0,0.00014999,2]
[423206308,1779928240000,-500.39154945,0.00014999,2]
[423206311,1779928240000,-500.0,0.00014999,2]
[423206310,1779928240000,-500.0,0.00014999,2]
[423206309,1779928240000,-500.0,0.00014999,2]
[423206312,1779928240000,-500.0,0.00014999,2]
[423206294,1779928240000,-500.0,0.00014999,2]
[423206302,1779928240000,-500.0,0.00014999,2]
[423206289,1779928240000,-151.96613771,0.0001499,2]
[423206318,1779928240000,-500.0,0.00014999,2]
[423206288,1779928240000,-151.96613771,0.0001499,2]
[423206261,1779928240000,-500.0,0.00014982,2]
[423206263,1779928240000,-500.0,0.00014982,2]
[423206262,1779928240000,-500.0,0.00014982,2]
[423206264,1779928240000,-500.0,0.00014982,2]
[423206266,1779928240000,-500.0,0.00014982,2]
[423206272,1779928240000,-500.0,0.00014982,2]
[423206273,1779928240000,-500.0,0.00014982,2]
[423206274,1779928240000,-945.22,0.00014982,2]
[423206268,1779928240000,-500.0,0.00014982,2]
[423206269,1779928240000,-500.0,0.00014982,2]
[423206270,1779928240000,-758.16,0.00014982,2]
[423206287,1779928240000,-150.0,0.00014986,2]
[423206271,1779928240000,-641.44,0.00014982,2]
[423206276,1779928240000,-97865.5863291,0.00014983,2]
[423206277,1779928240000,-881.7946673,0.00014983,2]
[423206278,1779928240000,-150.0,0.00014986,2]
[423206280,1779928240000,-150.0,0.00014986,2]
[423206279,1779928240000,-150.0,0.00014986,2]
[423206281,1779928240000,-255.41904479,0.00014986,2]
[423206282,1779928240000,-150.0,0.00014986,2]
[423206283,1779928240000,-150.0,0.00014986,2]
[423206284,1779928240000,-150.0,0.00014986,2]
[423206286,1779928240000,-299.7778038,0.00014986,2]
[423206285,1779928240000,-150.0,0.00014986,2]
[423206275,1779928240000,-2102.28,0.00014982,2]
[423206313,1779928240000,-500.0,0.00014999,2]
[423206322,1779928240000,-500.0,0.00014999,2]
[423206316,1779928240000,-500.0,0.00014999,2]
[423206346,1779928240000,-533.24,0.00014999,2]
[423206349,1779928240000,-195.84112978,0.00014999,2]
[423206350,1779928240000,-500.0,0.00014999,2]
[423206347,1779928240000,-533.24,0.00014999,2]
[423206348,1779928240000,-533.42383751,0.00014999,2]
[423206351,1779928240000,-500.0,0.00014999,2]
[423206353,1779928240000,-500.0,0.00014999,2]
[423206356,1779928240000,-500.0,0.00014999,2]
[423206354,1779928240000,-500.0,0.00014999,2]
[423206355,1779928240000,-500.0,0.00014999,2]
[423206352,1779928240000,-500.0,0.00014999,2]
[423206358,1779928240000,-500.0,0.00014999,2]
[423206359,1779928240000,-500.0,0.00014999,2]
[423206361,1779928240000,-500.0,0.00014999,2]
[423206362,1779928240000,-500.0,0.00014999,2]
[423206367,1779928240000,-500.0,0.00014999,2]
[423206365,1779928240000,-500.0,0.00014999,2]
[423206363,1779928240000,-349.46206438,0.00014999,2]
[423206366,1779928240000,-500.0,0.00014999,2]
[423206360,1779928240000,-500.0,0.00014999,2]
[423206368,1779928240000,-500.0,0.00014999,2]
[423206364,1779928240000,-500.0,0.00014999,2]
[423206317,1779928240000,-500.0,0.00014999,2]
[423206345,1779928240000,-533.24,0.00014999,2]
[423206343,1779928240000,-533.24,0.00014999,2]
[423206357,1779928240000,-500.0,0.00014999,2]
[423206342,1779928240000,-533.24,0.00014999,2]
[423206344,1779928240000,-533.24,0.00014999,2]
[423206314,1779928240000,-500.0,0.00014999,2]
[423206319,1779928240000,-500.0,0.00014999,2]
[423206320,1779928240000,-500.0,0.00014999,2]
[423206330,1779928240000,-533.24,0.00014999,2]
[423206321,1779928240000,-500.0,0.00014999,2]
[423206323,1779928240000,-500.0,0.00014999,2]
[423206324,1779928240000,-500.0,0.00014999,2]
[423206329,1779928240000,-533.24,0.00014999,2]
[423206327,1779928240000,-190.88366952,0.00014999,2]
[423206326,1779928240000,-500.0,0.00014999,2]
[423206325,1779928240000,-500.0,0.00014999,2]
[423206315,1779928240000,-500.0,0.00014999,2]
[423206331,1779928240000,-533.24,0.00014999,2]
[423206328,1779928240000,-533.24,0.00014999,2]
[423206340,1779928240000,-533.24,0.00014999,2]
[423206341,1779928240000,-533.24,0.00014999,2]
[423206337,1779928240000,-533.24,0.00014999,2]
[423206338,1779928240000,-533.24,0.00014999,2]
[423206339,1779928240000,-533.24,0.00014999,2]
[423206336,1779928240000,-533.24,0.00014999,2]
[423206335,1779928240000,-533.24,0.00014999,2]
[423206333,1779928240000,-533.24,0.00014999,2]
[423206334,1779928240000,-533.24,0.00014999,2]
[423206332,1779928240000,-533.24,0.00014999,2]
[423206408,1779928241000,-500.0,0.00014999,2]
[423206400,1779928241000,-643.17963152,0.00014999,2]
[423206403,1779928241000,-500.0,0.00014999,2]
[423206399,1779928241000,-500.0,0.00014999,2]
[423206404,1779928241000,-500.0,0.00014999,2]
[423206402,1779928241000,-500.0,0.00014999,2]
[423206398,1779928241000,-500.0,0.00014999,2]
[423206397,1779928241000,-500.0,0.00014999,2]
[423206401,1779928241000,-500.0,0.00014999,2]
[423206405,1779928241000,-500.0,0.00014999,2]
[423206407,1779928241000,-500.0,0.00014999,2]
[423206413,1779928241000,-500.0,0.00014999,2]
[423206406,1779928241000,-500.0,0.00014999,2]
[423206410,1779928241000,-500.0,0.00014999,2]
[423206412,1779928241000,-500.0,0.00014999,2]
[423206411,1779928241000,-500.0,0.00014999,2]
[423206415,1779928241000,-500.0,0.00014999,2]
[423206416,1779928241000,-643.66324875,0.00014999,2]
[423206426,1779928241000,-500.0,0.00014999,2]
[423206414,1779928241000,-500.0,0.00014999,2]
[423206417,1779928241000,-500.0,0.00014999,2]
[423206425,1779928241000,-500.0,0.00014999,2]
[423206396,1779928241000,-500.0,0.00014999,2]
[423206409,1779928241000,-500.0,0.00014999,2]
[423206394,1779928241000,-539.62353422,0.00014999,2]
[423206369,1779928241000,-500.0,0.00014999,2]
[423206391,1779928241000,-500.0,0.00014999,2]
[423206371,1779928241000,-500.0,0.00014999,2]
[423206374,1779928241000,-500.0,0.00014999,2]
[423206375,1779928241000,-500.0,0.00014999,2]
[423206376,1779928241000,-500.0,0.00014999,2]
[423206370,1779928241000,-500.0,0.00014999,2]
[423206373,1779928241000,-500.0,0.00014999,2]
[423206372,1779928241000,-500.0,0.00014999,2]
[423206377,1779928241000,-500.0,0.00014999,2]
[423206380,1779928241000,-500.0,0.00014999,2]
[423206379,1779928241000,-530.08819485,0.00014999,2]
[423206378,1779928241000,-500.0,0.00014999,2]
[423206381,1779928241000,-500.0,0.00014999,2]
[423206383,1779928241000,-500.0,0.00014999,2]
[423206382,1779928241000,-500.0,0.00014999,2]
[423206384,1779928241000,-500.0,0.00014999,2]
[423206393,1779928241000,-500.0,0.00014999,2]
[423206385,1779928241000,-500.0,0.00014999,2]
[423206386,1779928241000,-500.0,0.00014999,2]
[423206390,1779928241000,-500.0,0.00014999,2]
[423206392,1779928241000,-252.09913183,0.00014999,2]
[423206389,1779928241000,-500.0,0.00014999,2]
[423206388,1779928241000,-500.0,0.00014999,2]
[423206387,1779928241000,-500.0,0.00014999,2]
[423206395,1779928241000,-500.0,0.00014999,2]
[423206418,1779928241000,-500.0,0.00014999,2]
[423206419,1779928241000,-500.0,0.00014999,2]
[423206421,1779928241000,-500.0,0.00014999,2]
[423206452,1779928241000,-500.0,0.00014999,2]
[423206463,1779928241000,-500.0,0.00014999,2]
[423206462,1779928241000,-500.0,0.00014999,2]
[423206451,1779928241000,-500.0,0.00014999,2]
[423206453,1779928241000,-500.0,0.00014999,2]
[423206457,1779928241000,-500.0,0.00014999,2]
[423206454,1779928241000,-500.0,0.00014999,2]
[423206456,1779928241000,-500.0,0.00014999,2]
[423206461,1779928241000,-500.0,0.00014999,2]
[423206455,1779928241000,-500.0,0.00014999,2]
[423206458,1779928241000,-500.0,0.00014999,2]
[423206460,1779928241000,-500.0,0.00014999,2]
[423206459,1779928241000,-500.0,0.00014999,2]
[423206464,1779928241000,-500.0,0.00014999,2]
[423206465,1779928241000,-500.0,0.00014999,2]
[423206467,1779928241000,-500.0,0.00014999,2]
[423206466,1779928241000,-500.0,0.00014999,2]
[423206470,1779928241000,-758.16,0.00014999,2]
[423206468,1779928241000,-500.0,0.00014999,2]
[423206472,1779928241000,-758.16,0.00014999,2]
[423206469,1779928241000,-214.84,0.00014999,2]
[423206473,1779928241000,-758.16,0.00014999,2]
[423206424,1779928241000,-500.0,0.00014999,2]
[423206450,1779928241000,-519.56568703,0.00014999,2]
[423206449,1779928241000,-500.0,0.00014999,2]
[423206471,1779928241000,-758.16,0.00014999,2]
[423206447,1779928241000,-500.0,0.00014999,2]
[423206420,1779928241000,-500.0,0.00014999,2]
[423206423,1779928241000,-500.0,0.00014999,2]
[423206422,1779928241000,-500.0,0.00014999,2]
[423206437,1779928241000,-500.0,0.00014999,2]
[423206436,1779928241000,-500.0,0.00014999,2]
[423206427,1779928241000,-500.0,0.00014999,2]
[423206446,1779928241000,-500.0,0.00014999,2]
[423206430,1779928241000,-500.0,0.00014999,2]
[423206429,1779928241000,-500.0,0.00014999,2]
[423206428,1779928241000,-500.0,0.00014999,2]
[423206431,1779928241000,-500.0,0.00014999,2]
[423206438,1779928241000,-500.0,0.00014999,2]
[423206433,1779928241000,-500.0,0.00014999,2]
[423206432,1779928241000,-500.0,0.00014999,2]
[423206448,1779928241000,-500.0,0.00014999,2]
[423206445,1779928241000,-500.0,0.00014999,2]
[423206442,1779928241000,-500.0,0.00014999,2]
[423206443,1779928241000,-500.0,0.00014999,2]
[423206440,1779928241000,-500.0,0.00014999,2]
[423206441,1779928241000,-500.0,0.00014999,2]
[423206439,1779928241000,-500.0,0.00014999,2]
[423206434,1779928241000,-500.0,0.00014999,2]
[423206435,1779928241000,-288.14,0.00014999,2]
[423206444,1779928241000,-325.03034277,0.00014999,2]
[423206497,1779928242000,-641.44,0.00014999,2]
[423206501,1779928242000,-641.44,0.00014999,2]
[423206508,1779928242000,-641.44,0.00014999,2]
[423206512,1779928242000,-500.0,0.00014999,2]
[423206503,1779928242000,-641.44,0.00014999,2]
[423206509,1779928242000,-641.44,0.00014999,2]
[423206504,1779928242000,-641.44,0.00014999,2]
[423206505,1779928242000,-641.44,0.00014999,2]
[423206502,1779928242000,-641.44,0.00014999,2]
[423206511,1779928242000,-641.46446503,0.00014999,2]
[423206522,1779928242000,-203.76945539,0.00014999,2]
[423206510,1779928242000,-641.44,0.00014999,2]
[423206507,1779928242000,-641.44,0.00014999,2]
[423206513,1779928242000,-500.0,0.00014999,2]
[423206514,1779928242000,-500.0,0.00014999,2]
[423206515,1779928242000,-500.0,0.00014999,2]
[423206524,1779928242000,-500.0,0.00014999,2]
[423206516,1779928242000,-500.0,0.00014999,2]
[423206525,1779928242000,-500.0,0.00014999,2]
[423206517,1779928242000,-500.0,0.00014999,2]
[423206523,1779928242000,-500.0,0.00014999,2]
[423206500,1779928242000,-641.44,0.00014999,2]
[423206506,1779928242000,-641.44,0.00014999,2]
[423206492,1779928242000,-641.44,0.00014999,2]
[423206483,1779928242000,-758.16,0.00014999,2]
[423206493,1779928242000,-641.44,0.00014999,2]
[423206520,1779928242000,-500.0,0.00014999,2]
[423206474,1779928242000,-758.16,0.00014999,2]
[423206476,1779928242000,-758.16,0.00014999,2]
[423206486,1779928242000,-758.16,0.00014999,2]
[423206475,1779928242000,-758.16,0.00014999,2]
[423206487,1779928242000,-758.16,0.00014999,2]
[423206478,1779928242000,-758.16,0.00014999,2]
[423206477,1779928242000,-758.16,0.00014999,2]
[423206479,1779928242000,-758.16,0.00014999,2]
[423206485,1779928242000,-758.16,0.00014999,2]
[423206489,1779928242000,-758.16,0.00014999,2]
[423206484,1779928242000,-758.16,0.00014999,2]
[423206481,1779928242000,-758.16,0.00014999,2]
[423206482,1779928242000,-758.16,0.00014999,2]
[423206488,1779928242000,-758.16,0.00014999,2]
[423206490,1779928242000,-758.19030314,0.00014999,2]
[423206491,1779928242000,-641.44,0.00014999,2]
[423206499,1779928242000,-641.44,0.00014999,2]
[423206498,1779928242000,-641.44,0.00014999,2]
[423206495,1779928242000,-641.44,0.00014999,2]
[423206496,1779928242000,-641.44,0.00014999,2]
[423206494,1779928242000,-641.44,0.00014999,2]
[423206480,1779928242000,-758.16,0.00014999,2]
[423206518,1779928242000,-500.0,0.00014999,2]
[423206576,1779928242000,-164.03,0.00015,2]
[423206519,1779928242000,-500.0,0.00014999,2]
[423206569,1779928242000,-2102.28,0.00014999,2]
[423206568,1779928242000,-2102.28,0.00014999,2]
[423206566,1779928242000,-2102.28,0.00014999,2]
[423206554,1779928242000,-2102.28,0.00014999,2]
[423206567,1779928242000,-2102.28,0.00014999,2]
[423206557,1779928242000,-2102.28,0.00014999,2]
[423206560,1779928242000,-2102.28,0.00014999,2]
[423206562,1779928242000,-2102.28,0.00014999,2]
[423206564,1779928242000,-2102.28,0.00014999,2]
[423206563,1779928242000,-2102.28,0.00014999,2]
[423206565,1779928242000,-2102.28,0.00014999,2]
[423206570,1779928242000,-2102.28,0.00014999,2]
[423206556,1779928242000,-2102.28,0.00014999,2]
[423206571,1779928242000,-2102.38216464,0.00014999,2]
[423206573,1779928242000,-3577.0,0.00015,5]
[423206575,1779928242000,-201.88,0.00015,2]
[423206578,1779928242000,-301.87915129,0.00015,2]
[423206574,1779928242000,-12679304.78095992,0.00015,2]
[423206577,1779928242000,-2380128.89764203,0.00015,2]
[423206579,1779928242000,-902.65302674,0.00015,2]
[423206580,1779928242000,-941.39137081,0.00015,2]
[423206521,1779928242000,-500.0,0.00014999,2]
[423206559,1779928242000,-2102.28,0.00014999,2]
[423206551,1779928242000,-2102.28,0.00014999,2]
[423206572,1779928242000,-2387.0,0.00015,5]
[423206549,1779928242000,-2102.28,0.00014999,2]
[423206553,1779928242000,-2102.28,0.00014999,2]
[423206526,1779928242000,-945.22,0.00014999,2]